Workbook

Sheet WKP G-6.b 2025 Benefits
B3: H & W Benefits | E3: TGS | H3: Corporate
A4: 9260190 | C4: A&G EMPL BEN RESERVE | E4: 10800550 | H4: 11791235
E5: =SUM(E4:E4) -> 10800550 | F5: =E5/E43 -> 0.1237523179 | H5: =SUM(H4:H4) -> 11791235 | I5: =H5/H43 -> 0.1403099034
B7: Pension
A8: 9260413 | C8: ONE GAS RETIREMENT PLAN SC | E8: 1027207 | H8: 1332532
A9: 9260513 | C9: ONE GAS RETIREMENT PLAN NSC | E9: -417325 | H9: -345967
A10: 9260115 | C10: EMPL BEN PENSION ADMIN | E10: 57936 | H10: 46632
E11: =SUM(E8:E10) -> 667818 | F11: =E11/E43 -> 0.007651834901 | H11: =SUM(H8:H10) -> 1033197 | I11: =H11/H43 -> 0.01229453669
B13: OPEB
A14: 9260431 | C14: OPEB SC | E14: 24058 | H14: 77001
A15: 9260531 | C15: OPEB NSC | E15: 110301 | H15: -74445
A16: 9260132 | C16: A&G EMPL BEN FAS 106 ADMIN | E16: 0 | H16: 0
E17: =SUM(E14:E16) -> 134359 | F17: =E17/E43 -> 0.001539480645 | H17: =SUM(H14:H16) -> 2556 | I17: =H17/H43 -> 3.041514423e-05
B19: SERP
A20: 9260411 | C20: SERP SC | E20: 0 | H20: 64573
A21: 9260511 | C21: SERP NSC | E21: 3398 | H21: 826367
A22: 9260112 | C22: A&G EMPL BEN SERP ADMIN | E22: 0 | H22: 101200
E23: =SUM(E20:E22) -> 3398 | F23: =E23/E43 -> 3.893416319e-05 | H23: =SUM(H20:H22) -> 992140 | I23: =H23/H43 -> 0.01180597856
B25: 401K & NQDC
A26: 9260101 | C26: A&G EMPL BEN 401(K) CO MATCH A&G | E26: 4523207 | H26: 3640630
A27: 9260102 | C27: EMPL BEN 401(K) ADMIN | E27: 147133 | H27: 118426
A28: 9260103 | C28: A&G EMPL BEN DEF COMP CO MATCH | E28: 0 | H28: 327000
A29: 9260104 | C29: A&G EMPL BEN DEF COMP ADMIN | E29: 0 | H29: 30640
E30: =SUM(E26:E29) -> 4670340 | F30: =E30/E43 -> 0.05351258967 | H30: =SUM(H26:H29) -> 4116696 | I30: =H30/H43 -> 0.04898665985
B32: PROFIT SHARING PLAN
A33: 9260141 | C33: A&G EMPL BEN PROFIT SHARING | E33: 2966573 | H33: 2387730
A34: 9260140 | C34: A&G EMPL BEN PROFIT SHARING ADMIN | E34: 0 | H34: 0
E35: =SUM(E33:E34) -> 2966573 | F35: =E35/E43 -> 0.03399088796 | H35: =SUM(H33:H34) -> 2387730 | I35: =H35/H43 -> 0.0284128139
B37: PAYROLL TAXES
A38: 4081102 | C38: GEN TAX FICA | E38: 6034000 | F38: =E38/$E$43 -> 0.06913735747 | H38: 5232000 | I38: =H38/$H$43 -> 0.0622582295
A39: 4081101 | C39: GEN TAX FED UNEMPL INS TAX | E39: 41700 | F39: =E39/$E$43 -> 0.0004777971174 | H39: 31700 | I39: =H39/$H$43 -> 0.0003772144257
A40: 4081132 | C40: GEN TAX STATE UNEMPL INS | E40: 172300 | F40: =E40/$E$43 -> 0.001974207274 | H40: 171300 | I40: =H40/$H$43 -> 0.00203838584
E41: =SUM(E38:E40) -> 6248000 | F41: =E41/E43 -> 0.07158936186 | H41: =SUM(H38:H40) -> 5435000 | I41: =H41/H43 -> 0.06467382977
B43: TOTAL LABOR | E43: 87275537 | F43: =F41+F35+F30+F23+F17+F11+F5 -> 0.2920754071 | H43: 84037083 | I43: =I41+I35+I30+I23+I17+I11+I5 -> 0.3065141373
